Workbook

Sheet Interés al Vencimiento
A3: Pago de Interés al Vencimiento
A4: Capital | B4: 5000
A5: Moneda | B5: Soles
A6: Plazo en días | B6: 1080
A7: TREA | B7: 0.07
A8: Tasa del plazo | B8: =((1+$B$7)^(B6/360)-1) -> 0.225043
A9: Interés al Vencimiento | B9: =B8*B4 -> 1125.215
A11: Pre-cancelación:
A12: TEA de Penalidad | B12: =+IF($B$5="Soles",1.25%,0.2%) -> 0.0125
A13: Días transcurridos | B13: 90
A14: Tasa del plazo penalidad | B14: =((1+$B$12)^(B13/360)-1) -> 0.003110457465
A15: Interés al Vencimiento por Pre-cancelación | B15: =B4*B14 -> 15.55228732
B17: Datos variables

Sheet Interés Mensual
A3: Pago de Interés Mensual
A4: Capital | B4: 5000
A5: Moneda | B5: Soles
A6: Plazo en días | B6: 180
A7: TEA | B7: 0.045
A8: Tasa del plazo | B8: =((1+$B$7)^(30/360)-1) -> 0.0036748094
A9: TREA | B9: =+(B4+B10*12)/B4-1 -> 0.04409771281
A10: Interés Mensual | B10: =B8*B4 -> 18.374047
A11: Interés total Abonado | B11: =+B6/30*B10 -> 110.244282
A13: Pre-cancelación:
A14: TEA penalidad | B14: =+IF($B$5="Soles",1.25%,0.2%) -> 0.0125
A15: Días transcurridos | B15: 90
A16: Tasa del plazo penalidad | B16: =((1+$B$14)^(30/360)-1) -> 0.001035746015
A17: Interés total por Pre-cancelación | B17: =B4*B16*B15/30 -> 15.53619022
B19: Datos variables

Sheet Interés Adelantado
A3: Pago de Interés Adelantado
A4: Capital | B4: 800000
A5: Moneda | B5: Soles
A6: Plazo en días | B6: 1080
A7: TEA | B7: 0.02
A8: Tasa del plazo | B8: =((1+$B$7)^(B6/360)-1) -> 0.061208
A9: Tasa del plazo de interés adelantado | B9: =B8/(1+B8) -> 0.05767766545
A10: TREA | B10: =+B7/(1+B7) -> 0.01960784314
A11: Interés Adelantado | B11: =+B9*B4 -> 46142.13236
A13: Pre-cancelación:
A14: TEA penalidad | B14: =+IF($B$5="Soles",1.25%,0.2%) -> 0.0125
A15: Días transcurridos | B15: 101
A16: Tasa del plazo penalidad | B16: =((1+$B$14)^(B15/360)-1) -> 0.003491287395
A17: Tasa del plazo de interés penalidad | B17: =B16/(1+B16) -> 0.003479140715
A18: Descuento del Capital por Pre-cancelación | B18: =B11-(B17*B4) -> 43358.81979
B20: Datos variables

Sheet Interés y Capital Mensual
A3: Pago Interes y capital Mensual | F3: Pre-Cancelación:
A4: CAPITAL | D4: 1050000 | F4: TEA penalidad | I4: 0.0125
A5: TEA | D5: 0.07 | F5: Periodo de alerta | I5: 35
A6: Meses | D6: 240
A7: Cuota Mensual (Interés+Capital) | D7: 8000
A8: CAPITAL remanente al final del periodo | D8: 2877.673104
A12: MES | B12: CAPITAL | C12: Porción capital | D12: Porción interés | E12: Pago Mensual | F12: Dscto.Capital Pre-cancelación (a periodo vencido) | H12: CAPITAL | I12: Dscto. Capital | J12: Interes mes
A13: 1 | B13: 1050000 | C13: 2063.147343 | D13: 5936.852657 | E13: 8000 | F13: -359469.6097 | H13: 1050000 | I13: -357406.4623 | J13: 365406.4623
A14: 2 | B14: 1047936.853 | C14: 2074.812678 | D14: 5925.187322 | E14: 8000 | F14: -843330.5333 | H14: 1407406.462 | I14: -481786.1109 | J14: 489786.1109
A15: 3 | B15: 1045862.04 | C15: 2086.543971 | D15: 5913.456029 | E15: 8000 | F15: -1494867.72 | H15: 1889192.573 | I15: -649450.6427 | J15: 657450.6427
A16: 4 | B16: 1043775.496 | C16: 2098.341594 | D16: 5901.658406 | E16: 8000 | F16: -2372429.525 | H16: 2538643.216 | I16: -875463.4635 | J16: 883463.4635
A17: 5 | B17: 1041677.154 | C17: 2110.205922 | D17: 5889.794078 | E17: 8000 | F17: -3554669.868 | H17: 3414106.679 | I17: -1180130.137 | J17: 1188130.137
A18: 6 | B18: 1039566.948 | C18: 2122.137333 | D18: 5877.862667 | E18: 8000 | F18: -5147614.693 | H18: 4594236.816 | I18: -1590822.688 | J18: 1598822.688
A19: 7 | B19: 1037444.811 | C19: 2134.136206 | D19: 5865.863794 | E19: 8000 | F19: -7294187.603 | H19: 6185059.504 | I19: -2144438.774 | J19: 2152438.774
A20: 8 | B20: 1035310.675 | C20: 2146.202923 | D20: 5853.797077 | E20: 8000 | F20: -10187050.47 | H20: 8329498.278 | I20: -2890716.665 | J20: 2898716.665
A21: 9 | B21: 1033164.472 | C21: 2158.337866 | D21: 5841.662134 | E21: 8000 | F21: -14085912.67 | H21: 11220214.94 | I21: -3896703.856 | J21: 3904703.856
A22: 10 | B22: 1031006.134 | C22: 2170.541422 | D22: 5829.458578 | E22: 8000 | F22: -19340863.99 | H22: 15116918.8 | I22: -5252780.781 | J22: 5260780.781
A23: 11 | B23: 1028835.593 | C23: 2182.813979 | D23: 5817.186021 | E23: 8000 | F23: -26423827.62 | H23: 20369699.58 | I23: -7080780.821 | J23: 7088780.821
A24: 12 | B24: 1026652.779 | C24: 2195.155926 | D24: 5804.844074 | E24: 8000 | F24: -35970958.91 | H24: 27450480.4 | I24: -9544936.127 | J24: 9552936.127
A25: 13 | B25: 1024457.623 | C25: 2207.567657 | D25: 5792.432343 | E25: 8000 | F25: -48839799.12 | H25: 36995416.53 | I25: -12866632.64 | J25: 12874632.64
A26: 14 | B26: 1022250.055 | C26: 2220.049566 | D26: 5779.950434 | E26: 8000 | F26: -66186319.16 | H26: 49862049.17 | I26: -17344299.99 | J26: 17352299.99
A27: 15 | B27: 1020030.006 | C27: 2232.602049 | D27: 5767.397951 | E27: 8000 | F27: -89568774.9 | H27: 67206349.16 | I27: -23380223.14 | J27: 23388223.14
A28: 16 | B28: 1017797.404 | C28: 2245.225505 | D28: 5754.774495 | E28: 8000 | F28: -121087704.8 | H28: 90586572.3 | I28: -31516684.69 | J28: 31524684.69
A29: 17 | B29: 1015552.178 | C29: 2257.920337 | D29: 5742.079663 | E29: 8000 | F29: -163574647.7 | H29: 122103257 | I29: -42484684.93 | J29: 42492684.93
A30: 18 | B30: 1013294.258 | C30: 2270.686947 | D30: 5729.313053 | E30: 8000 | F30: -220846535.1 | H30: 164587941.9 | I30: -57269616.76 | J30: 57277616.76
A31: 19 | B31: 1011023.571 | C31: 2283.525741 | D31: 5716.474259 | E31: 8000 | F31: -298048614.5 | H31: 221857558.7 | I31: -77199795.86 | J31: 77207795.86
A32: 20 | B32: 1008740.045 | C32: 2296.437127 | D32: 5703.562873 | E32: 8000 | F32: -402116710.9 | H32: 299057354.5 | I32: -104065800 | J32: 104073800
A33: 21 | B33: 1006443.608 | C33: 2309.421517 | D33: 5690.578483 | E33: 8000 | F33: -542400359.1 | H33: 403123154.5 | I33: -140281338.8 | J33: 140289338.8
A34: 22 | B34: 1004134.186 | C34: 2322.479322 | D34: 5677.520678 | E34: 8000 | F34: -731502789.7 | H34: 543404493.3 | I34: -189100108.1 | J34: 189108108.1
A35: 23 | B35: 1001811.707 | C35: 2335.610957 | D35: 5664.389043 | E35: 8000 | F35: -986413234.9 | H35: 732504601.4 | I35: -254908109.6 | J35: 254916109.6
A36: 24 | B36: 999476.0961 | C36: 2348.816841 | D36: 5651.183159 | E36: 8000 | F36: -1330033284 | H36: 987412711 | I36: -343617700.6 | J36: 343625700.6
A37: 25 | B37: 997127.2793 | C37: 2362.097393 | D37: 5637.902607 | E37: 8000 | F37: -1793234422 | H37: 1331030412 | I37: -463198775.2 | J37: 463206775.2
A38: 26 | B38: 994765.1819 | C38: 2375.453035 | D38: 5624.546965 | E38: 8000 | F38: -2417631597 | H38: 1794229187 | I38: -624394799.7 | J38: 624402799.7
A39: 27 | B39: 992389.7288 | C39: 2388.884192 | D39: 5611.115808 | E39: 8000 | F39: -3259322019 | H39: 2418623986 | I39: -841688032.9 | J39: 841696032.9
A40: 28 | B40: 990000.8446 | C40: 2402.391291 | D40: 5597.608709 | E40: 8000 | F40: -4393925070 | H40: 3260312019 | I40: -1134600649 | J40: 1134608649
A41: 29 | B41: 987598.4534 | C41: 2415.97476 | D41: 5584.02524 | E41: 8000 | F41: -5923376143 | H41: 4394912668 | I41: -1529448657 | J41: 1529456657
A42: 30 | B42: 985182.4786 | C42: 2429.635033 | D42: 5570.364967 | E42: 8000 | F42: -7985084776 | H42: 5924361325 | I42: -2061706203 | J42: 2061714203
A43: 31 | B43: 982752.8436 | C43: 2443.372543 | D43: 5556.627457 | E43: 8000 | F43: -1.076427987e+10 | H43: 7986067529 | I43: -2779192651 | J43: 2779200651
A44: 32 | B44: 980309.471 | C44: 2457.187726 | D44: 5542.812274 | E44: 8000 | F44: -1.451065113e+10 | H44: 1.076526018e+10 | I44: -3746368798 | J44: 3746376798
A45: 33 | B45: 977852.2833 | C45: 2471.081023 | D45: 5528.918977 | E45: 8000 | F45: -1.956078179e+10 | H45: 1.451162898e+10 | I45: -5050128198 | J45: 5050136198
A46: 34 | B46: 975381.2023 | C46: 2485.052874 | D46: 5514.947126 | E46: 8000 | F46: -2.636838817e+10 | H46: 1.956175718e+10 | I46: -6807603892 | J46: 6807611892
A47: 35 | B47: 972896.1494 | C47: 2499.103724 | D47: 5500.896276 | E47: 8000 | F47: -3.554508262e+10 | H47: 2.636936107e+10 | I47: -9176691944 | J47: 9176699944
A48: 36 | B48: 970397.0457 | C48: 2513.23402 | D48: 5486.76598 | E48: 8000 | F48: -4.791532235e+10 | H48: 3.554605301e+10 | I48: -1.237023722e+10 | J48: 1.237024522e+10
A49: 37 | B49: 967883.8117 | C49: 2527.444211 | D49: 5472.555789 | E49: 8000 | F49: -6.459048078e+10 | H49: 4.791629023e+10 | I49: -1.667515591e+10 | J49: 1.667516391e+10
A50: 38 | B50: 965356.3674 | C50: 2541.734748 | D50: 5458.265252 | E50: 8000 | F50: -8.706869611e+10 | H50: 6.459144614e+10 | I50: -2.247821279e+10 | J50: 2.247822079e+10
A51: 39 | B51: 962814.6327 | C51: 2556.106086 | D51: 5443.893914 | E51: 8000 | F51: -1.173694679e+11 | H51: 8.706965893e+10 | I51: -3.030076919e+10 | J51: 3.030077719e+10
A52: 40 | B52: 960258.5266 | C52: 2570.558681 | D52: 5429.441319 | E52: 8000 | F52: -1.582150938e+11 | H52: 1.173704281e+11 | I52: -4.084562335e+10 | J52: 4.084563135e+10
A53: 41 | B53: 957687.9679 | C53: 2585.092994 | D53: 5414.907006 | E53: 8000 | F53: -2.13275248e+11 | H53: 1.582160515e+11 | I53: -5.506015167e+10 | J53: 5.506015967e+10
A54: 42 | B54: 955102.8749 | C54: 2599.709485 | D54: 5400.290515 | E54: 8000 | F54: -2.87496674e+11 | H54: 2.132762031e+11 | I54: -7.422142332e+10 | J54: 7.422143132e+10
A55: 43 | B55: 952503.1655 | C55: 2614.408621 | D55: 5385.591379 | E55: 8000 | F55: -3.87547612e+11 | H55: 2.874976265e+11 | I55: -1.000509354e+11 | J55: 1.000509434e+11
A56: 44 | B56: 949888.7568 | C56: 2629.190867 | D56: 5370.809133 | E56: 8000 | F56: -5.224168914e+11 | H56: 3.875485619e+11 | I56: -1.348692767e+11 | J56: 1.348692847e+11
A57: 45 | B57: 947259.566 | C57: 2644.056694 | D57: 5355.943306 | E57: 8000 | F57: -7.042215091e+11 | H57: 5.224178386e+11 | I57: -1.818046151e+11 | J57: 1.818046231e+11
A58: 46 | B58: 944615.5093 | C58: 2659.006575 | D58: 5340.993425 | E58: 8000 | F58: -9.492952519e+11 | H58: 7.042224538e+11 | I58: -2.450737401e+11 | J58: 2.450737481e+11
A59: 47 | B59: 941956.5027 | C59: 2674.040985 | D59: 5325.959015 | E59: 8000 | F59: -1.279656165e+12 | H59: 9.492961939e+11 | I59: -3.3036091e+11 | J59: 3.30360918e+11
A60: 48 | B60: 939282.4617 | C60: 2689.160402 | D60: 5310.839598 | E60: 8000 | F60: -1.724984707e+12 | H60: 1.279657104e+12 | I60: -4.453285399e+11 | J60: 4.453285479e+11
A61: 49 | B61: 936593.3013 | C61: 2704.365306 | D61: 5295.634694 | E61: 8000 | F61: -2.325290323e+12 | H61: 1.724985644e+12 | I61: -6.003056126e+11 | J61: 6.003056206e+11
A62: 50 | B62: 933888.936 | C62: 2719.65618 | D62: 5280.34382 | E62: 8000 | F62: -3.134505986e+12 | H62: 2.325291256e+12 | I62: -8.092156605e+11 | J62: 8.092156685e+11
A63: 51 | B63: 931169.2798 | C63: 2735.033512 | D63: 5264.966488 | E63: 8000 | F63: -4.225333679e+12 | H63: 3.134506917e+12 | I63: -1.090827691e+12 | J63: 1.090827699e+12
A64: 52 | B64: 928434.2463 | C64: 2750.497789 | D64: 5249.502211 | E64: 8000 | F64: -5.695776123e+12 | H64: 4.225334608e+12 | I64: -1.470442441e+12 | J64: 1.470442449e+12
A65: 53 | B65: 925683.7485 | C65: 2766.049503 | D65: 5233.950497 | E65: 8000 | F65: -7.677941585e+12 | H65: 5.695777048e+12 | I65: -1.98216546e+12 | J65: 1.982165468e+12
A66: 54 | B66: 922917.699 | C66: 2781.689149 | D66: 5218.310851 | E66: 8000 | F66: -1.034991283e+13 | H66: 7.677942508e+12 | I66: -2.67197124e+12 | J66: 2.671971248e+12
A67: 55 | B67: 920136.0099 | C67: 2797.417224 | D67: 5202.582776 | E67: 8000 | F67: -1.395174651e+13 | H67: 1.034991375e+13 | I67: -3.601833676e+12 | J67: 3.601833684e+12
A68: 56 | B68: 917338.5926 | C68: 2813.234228 | D68: 5186.765772 | E68: 8000 | F68: -1.880704047e+13 | H68: 1.395174742e+13 | I68: -4.855293963e+12 | J68: 4.855293971e+12
A69: 57 | B69: 914525.3584 | C69: 2829.140663 | D69: 5170.859337 | E69: 8000 | F69: -2.535200662e+13 | H69: 1.880704139e+13 | I69: -6.544966144e+12 | J69: 6.544966152e+12
A70: 58 | B70: 911696.2178 | C70: 2845.137036 | D70: 5154.862964 | E70: 8000 | F70: -3.417466127e+13 | H70: 2.535200753e+13 | I70: -8.822654644e+12 | J70: 8.822654652e+12
A71: 59 | B71: 908851.0807 | C71: 2861.223854 | D71: 5138.776146 | E71: 8000 | F71: -4.606765403e+13 | H71: 3.417466217e+13 | I71: -1.189299276e+13 | J71: 1.189299277e+13
A72: 60 | B72: 905989.8569 | C72: 2877.40163 | D72: 5122.59837 | E72: 8000 | F72: -6.209948147e+13 | H72: 4.606765493e+13 | I72: -1.603182744e+13 | J72: 1.603182745e+13
A73: 61 | B73: 903112.4552 | C73: 2893.670877 | D73: 5106.329123 | E73: 8000 | F73: -8.371048353e+13 | H73: 6.209948237e+13 | I73: -2.161100205e+13 | J73: 2.161100206e+13
A74: 62 | B74: 900218.7844 | C74: 2910.032113 | D74: 5089.967887 | E74: 8000 | F74: -1.128422473e+14 | H74: 8.371048443e+13 | I74: -2.913176378e+13 | J74: 2.913176378e+13
A75: 63 | B75: 897308.7522 | C75: 2926.485857 | D75: 5073.514143 | E75: 8000 | F75: -1.521120442e+14 | H75: 1.128422482e+14 | I75: -3.926979687e+13 | J75: 3.926979687e+13
A76: 64 | B76: 894382.2664 | C76: 2943.032634 | D76: 5056.967366 | E76: 8000 | F76: -2.05047972e+14 | H76: 1.521120451e+14 | I76: -5.293592786e+13 | J76: 5.293592787e+13
A77: 65 | B77: 891439.2338 | C77: 2959.672968 | D77: 5040.327032 | E77: 8000 | F77: -2.764059286e+14 | H77: 2.050479729e+14 | I77: -7.135795656e+13 | J77: 7.135795657e+13
A78: 66 | B78: 888479.5608 | C78: 2976.40739 | D78: 5023.59261 | E78: 8000 | F78: -3.725968932e+14 | H78: 2.764059295e+14 | I78: -9.619096462e+13 | J78: 9.619096463e+13
A79: 67 | B79: 885503.1534 | C79: 2993.23643 | D79: 5006.76357 | E79: 8000 | F79: -5.022629056e+14 | H79: 3.725968941e+14 | I79: -1.296660123e+14 | J79: 1.296660123e+14
A80: 68 | B80: 882509.917 | C80: 3010.160624 | D80: 4989.839376 | E80: 8000 | F80: -6.770534882e+14 | H80: 5.022629064e+14 | I80: -1.747905827e+14 | J80: 1.747905827e+14
A81: 69 | B81: 879499.7563 | C81: 3027.180509 | D81: 4972.819491 | E81: 8000 | F81: -9.126722694e+14 | H81: 6.770534891e+14 | I81: -2.356187812e+14 | J81: 2.356187812e+14
A82: 70 | B82: 876472.5758 | C82: 3044.296628 | D82: 4955.703372 | E82: 8000 | F82: -1.230287837e+15 | H82: 9.126722703e+14 | I82: -3.176155672e+14 | J82: 3.176155672e+14
A83: 71 | B83: 873428.2792 | C83: 3061.509524 | D83: 4938.490476 | E83: 8000 | F83: -1658435575966969 | H83: 1230287837477122 | I83: -4.281477394e+14 | J83: 4.281477394e+14
A84: 72 | B84: 870366.7697 | C84: 3078.819744 | D84: 4921.180256 | E84: 8000 | F84: -2235581363704527 | H84: 1.658435577e+15 | I84: -5.771457877e+14 | J84: 5.771457877e+14
A85: 73 | B85: 867287.9499 | C85: 3096.227838 | D85: 4903.772162 | E85: 8000 | F85: -3013577437673595 | H85: 2235581364571815 | I85: -777996073965972 | J85: 777996073973972
A86: 74 | B86: 864191.7221 | C86: 3113.734361 | D86: 4886.265639 | E86: 8000 | F86: -4062320933635358 | H86: 3013577438537787 | I86: -1.048743496e+15 | J86: 1.048743496e+15
A87: 75 | B87: 861077.9877 | C87: 3131.339867 | D87: 4868.660133 | E87: 8000 | F87: -5476033620784614 | H87: 4062320934496436 | I87: -1.413712687e+15 | J87: 1.413712687e+15
A88: 76 | B88: 857946.6479 | C88: 3149.044918 | D88: 4850.955082 | E88: 8000 | F88: -7381727023892994 | H88: 5476033621642560 | I88: -1.905693403e+15 | J88: 1.905693403e+15
A89: 77 | B89: 854797.603 | C89: 3166.850076 | D89: 4833.149924 | E89: 8000 | F89: -9950613460057444 | H89: 7381727024747791 | I89: -2.568886436e+15 | J89: 2.568886436e+15
A90: 78 | B90: 851630.7529 | C90: 3184.755907 | D90: 4815.244093 | E90: 8000 | F90: -1.341348819e+16 | H90: 9950613460909074 | I90: -3.462874726e+15 | J90: 3.462874726e+15
A91: 79 | B91: 848445.997 | C91: 3202.76298 | D91: 4797.23702 | E91: 8000 | F91: -1.808146463e+16 | H91: 1.341348819e+16 | I91: -4667976443795832 | J91: 4667976443803832
A92: 80 | B92: 845243.234 | C92: 3220.871867 | D92: 4779.128133 | E92: 8000 | F92: -2.437392561e+16 | H92: 1.808146463e+16 | I92: -6292460975751896 | J92: 6292460975759896
A93: 81 | B93: 842022.3621 | C93: 3239.083145 | D93: 4760.916855 | E93: 8000 | F93: -3.285620173e+16 | H93: 2.437392561e+16 | I93: -8482276122876747 | J93: 8482276122884747
A94: 82 | B94: 838783.279 | C94: 3257.397392 | D94: 4742.602608 | E94: 8000 | F94: -4.429036215e+16 | H94: 3.285620173e+16 | I94: -1.143416042e+16 | J94: 1.143416042e+16
A95: 83 | B95: 835525.8816 | C95: 3275.815191 | D95: 4724.184809 | E95: 8000 | F95: -5.970368076e+16 | H95: 4.429036215e+16 | I95: -1.541331862e+16 | J95: 1.541331862e+16
A96: 84 | B96: 832250.0664 | C96: 3294.337126 | D96: 4705.662874 | E96: 8000 | F96: -8.048092912e+16 | H96: 5.970368077e+16 | I96: -2.077724836e+16 | J96: 2.077724836e+16
A97: 85 | B97: 828955.7293 | C97: 3312.963787 | D97: 4687.036213 | E97: 8000 | F97: -1.084887878e+17 | H97: 8.048092912e+16 | I97: -2.800785866e+16 | J97: 2.800785866e+16
A98: 86 | B98: 825642.7655 | C98: 3331.695766 | D98: 4668.304234 | E98: 8000 | F98: -1.462435536e+17 | H98: 1.084887878e+17 | I98: -3.775476585e+16 | J98: 3.775476585e+16
A99: 87 | B99: 822311.0697 | C99: 3350.533658 | D99: 4649.466342 | E99: 8000 | F99: -1.971372104e+17 | H99: 1.462435536e+17 | I99: -5.089365674e+16 | J99: 5.089365674e+16
A100: 88 | B100: 818960.5361 | C100: 3369.478063 | D100: 4630.521937 | E100: 8000 | F100: -2.657421729e+17 | H100: 1.971372104e+17 | I100: -6.860496251e+16 | J100: 6.860496251e+16
A101: 89 | B101: 815591.058 | C101: 3388.529581 | D101: 4611.470419 | E101: 8000 | F101: -3.582220846e+17 | H101: 2.657421729e+17 | I101: -9.24799117e+16 | J101: 9.24799117e+16
A102: 90 | B102: 812202.5284 | C102: 3407.68882 | D102: 4592.31118 | E102: 8000 | F102: -4.828855747e+17 | H102: 3.582220846e+17 | I102: -1.246634902e+17 | J102: 1.246634902e+17
A103: 91 | B103: 808794.8396 | C103: 3426.956388 | D103: 4573.043612 | E103: 8000 | F103: -6.509327267e+17 | H103: 4.828855747e+17 | I103: -1.68047152e+17 | J103: 1.68047152e+17
A104: 92 | B104: 805367.8832 | C104: 3446.332898 | D104: 4553.667102 | E104: 8000 | F104: -8.774613218e+17 | H104: 6.509327267e+17 | I104: -2.265285951e+17 | J104: 2.265285951e+17
A105: 93 | B105: 801921.5503 | C105: 3465.818965 | D105: 4534.181035 | E105: 8000 | F105: -1.182823262e+18 | H105: 8.774613218e+17 | I105: -3.053619404e+17 | J105: 3.053619404e+17
A106: 94 | B106: 798455.7313 | C106: 3485.41521 | D106: 4514.58479 | E106: 8000 | F106: -1.594453037e+18 | H106: 1.182823262e+18 | I106: -4.116297751e+17 | J106: 4.116297751e+17
A107: 95 | B107: 794970.3161 | C107: 3505.122254 | D107: 4494.877746 | E107: 8000 | F107: -2.149332508e+18 | H107: 1.594453037e+18 | I107: -5.548794702e+17 | J107: 5.548794702e+17
A108: 96 | B108: 791465.1939 | C108: 3524.940725 | D108: 4475.059275 | E108: 8000 | F108: -2.897313448e+18 | H108: 2.149332508e+18 | I108: -7.479809409e+17 | J108: 7.479809409e+17
A109: 97 | B109: 787940.2532 | C109: 3544.871252 | D109: 4455.128748 | E109: 8000 | F109: -3.90559636e+18 | H109: 2.897313448e+18 | I109: -1.008282912e+18 | J109: 1.008282912e+18
A110: 98 | B110: 784395.3819 | C110: 3564.91447 | D110: 4435.08553 | E110: 8000 | F110: -5.264767931e+18 | H110: 3.90559636e+18 | I110: -1.359171571e+18 | J110: 1.359171571e+18
A111: 99 | B111: 780830.4674 | C111: 3585.071014 | D111: 4414.928986 | E111: 8000 | F111: -7.096939574e+18 | H111: 5.264767931e+18 | I111: -1.832171643e+18 | J111: 1.832171643e+18
A112: 100 | B112: 777245.3964 | C112: 3605.341527 | D112: 4394.658473 | E112: 8000 | F112: -9.566718224e+18 | H112: 7.096939574e+18 | I112: -2.46977865e+18 | J112: 2.46977865e+18
A113: 101 | B113: 773640.0549 | C113: 3625.726652 | D113: 4374.273348 | E113: 8000 | F113: -1.289599505e+19 | H113: 9.566718224e+18 | I113: -3.329276821e+18 | J113: 3.329276821e+18
A114: 102 | B114: 770014.3282 | C114: 3646.227038 | D114: 4353.772962 | E114: 8000 | F114: -1.738388069e+19 | H114: 1.289599505e+19 | I114: -4.487885645e+18 | J114: 4.487885645e+18
A115: 103 | B115: 766368.1012 | C115: 3666.843336 | D115: 4333.156664 | E115: 8000 | F115: -2.343357816e+19 | H115: 1.738388069e+19 | I115: -6.049697471e+18 | J115: 6.049697471e+18
A116: 104 | B116: 762701.2579 | C116: 3687.576201 | D116: 4312.423799 | E116: 8000 | F116: -3.158860759e+19 | H116: 2.343357816e+19 | I116: -8.155029425e+18 | J116: 8.155029425e+18
A117: 105 | B117: 759013.6817 | C117: 3708.426293 | D117: 4291.573707 | E117: 8000 | F117: -4.258163744e+19 | H117: 3.158860759e+19 | I117: -1.099302986e+19 | J117: 1.099302986e+19
A118: 106 | B118: 755305.2554 | C118: 3729.394274 | D118: 4270.605726 | E118: 8000 | F118: -5.740030934e+19 | H118: 4.258163744e+19 | I118: -1.48186719e+19 | J118: 1.48186719e+19
A119: 107 | B119: 751575.8611 | C119: 3750.480812 | D119: 4249.519188 | E119: 8000 | F119: -7.737597027e+19 | H119: 5.740030934e+19 | I119: -1.997566093e+19 | J119: 1.997566093e+19
A120: 108 | B120: 747825.3803 | C120: 3771.686575 | D120: 4228.313425 | E120: 8000 | F120: -1.043032841e+20 | H120: 7.737597027e+19 | I120: -2.692731387e+19 | J120: 2.692731387e+19
A121: 109 | B121: 744053.6937 | C121: 3793.01224 | D121: 4206.98776 | E121: 8000 | F121: -1.40601469e+20 | H121: 1.043032841e+20 | I121: -3.629818483e+19 | J121: 3.629818483e+19
A122: 110 | B122: 740260.6815 | C122: 3814.458482 | D122: 4185.541518 | E122: 8000 | F122: -1.895316455e+20 | H122: 1.40601469e+20 | I122: -4.893017655e+19 | J122: 4.893017655e+19
A123: 111 | B123: 736446.223 | C123: 3836.025985 | D123: 4163.974015 | E123: 8000 | F123: -2.554898247e+20 | H123: 1.895316455e+20 | I123: -6.595817913e+19 | J123: 6.595817913e+19
A124: 112 | B124: 732610.197 | C124: 3857.715434 | D124: 4142.284566 | E124: 8000 | F124: -3.444018561e+20 | H124: 2.554898247e+20 | I124: -8.891203142e+19 | J124: 8.891203142e+19
A125: 113 | B125: 728752.4816 | C125: 3879.527518 | D125: 4120.472482 | E125: 8000 | F125: -4.642558216e+20 | H125: 3.444018561e+20 | I125: -1.198539656e+20 | J125: 1.198539656e+20
A126: 114 | B126: 724872.9541 | C126: 3901.46293 | D126: 4098.53707 | E126: 8000 | F126: -6.258197049e+20 | H126: 4.642558216e+20 | I126: -1.615638832e+20 | J126: 1.615638832e+20
A127: 115 | B127: 720971.4911 | C127: 3923.522369 | D127: 4076.477631 | E127: 8000 | F127: -8.436088138e+20 | H127: 6.258197049e+20 | I127: -2.17789109e+20 | J127: 2.17789109e+20
A128: 116 | B128: 717047.9688 | C128: 3945.706535 | D128: 4054.293465 | E128: 8000 | F128: -1.137189873e+21 | H128: 8.436088138e+20 | I128: -2.935810593e+20 | J128: 2.935810593e+20
A129: 117 | B129: 713102.2622 | C129: 3968.016133 | D129: 4031.983867 | E129: 8000 | F129: -1.532938948e+21 | H129: 1.137189873e+21 | I129: -3.957490748e+20 | J129: 3.957490748e+20
A130: 118 | B130: 709134.2461 | C130: 3990.451873 | D130: 4009.548127 | E130: 8000 | F130: -2.066411136e+21 | H130: 1.532938948e+21 | I130: -5.334721885e+20 | J130: 5.334721885e+20
A131: 119 | B131: 705143.7942 | C131: 4013.014469 | D131: 3986.985531 | E131: 8000 | F131: -2.78553493e+21 | H131: 2.066411136e+21 | I131: -7.191237934e+20 | J131: 7.191237934e+20
A132: 120 | B132: 701130.7797 | C132: 4035.704636 | D132: 3964.295364 | E132: 8000 | F132: -3.754918229e+21 | H132: 2.78553493e+21 | I132: -9.693832994e+20 | J132: 9.693832994e+20
A133: 121 | B133: 697095.0751 | C133: 4058.523097 | D133: 3941.476903 | E133: 8000 | F133: -5.061652883e+21 | H133: 3.754918229e+21 | I133: -1.306734654e+21 | J133: 1.306734654e+21
A134: 122 | B134: 693036.552 | C134: 4081.470576 | D134: 3918.529424 | E134: 8000 | F134: -6.823139239e+21 | H134: 5.061652883e+21 | I134: -1.761486356e+21 | J134: 1.761486356e+21
A135: 123 | B135: 688955.0814 | C135: 4104.547804 | D135: 3895.452196 | E135: 8000 | F135: -9.197633687e+21 | H135: 6.823139239e+21 | I135: -2.374494449e+21 | J135: 2.374494449e+21
A136: 124 | B136: 684850.5336 | C136: 4127.755514 | D136: 3872.244486 | E136: 8000 | F136: -1.239846682e+22 | H136: 9.197633687e+21 | I136: -3.200833131e+21 | J136: 3.200833131e+21
A137: 125 | B137: 680722.7781 | C137: 4151.094444 | D137: 3848.905556 | E137: 8000 | F137: -1.671320958e+22 | H137: 1.239846682e+22 | I137: -4.31474276e+21 | J137: 4.31474276e+21
A138: 126 | B138: 676571.6837 | C138: 4174.565336 | D138: 3825.434664 | E138: 8000 | F138: -2.252950938e+22 | H138: 1.671320958e+22 | I138: -5.816299796e+21 | J138: 5.816299796e+21
A139: 127 | B139: 672397.1183 | C139: 4198.168935 | D139: 3801.831065 | E139: 8000 | F139: -3.03699173e+22 | H139: 2.252950938e+22 | I139: -7.840407923e+21 | J139: 7.840407923e+21
A140: 128 | B140: 668198.9494 | C140: 4221.905992 | D140: 3778.094008 | E140: 8000 | F140: -4.093883543e+22 | H140: 3.03699173e+22 | I140: -1.056891813e+22 | J140: 1.056891813e+22
A141: 129 | B141: 663977.0434 | C141: 4245.777263 | D141: 3754.222737 | E141: 8000 | F141: -5.518580212e+22 | H141: 4.093883543e+22 | I141: -1.424696669e+22 | J141: 1.424696669e+22
A142: 130 | B142: 659731.2661 | C142: 4269.783505 | D142: 3730.216495 | E142: 8000 | F142: -7.439080091e+22 | H142: 5.518580212e+22 | I142: -1.920499879e+22 | J142: 1.920499879e+22
A143: 131 | B143: 655461.4826 | C143: 4293.925481 | D143: 3706.074519 | E143: 8000 | F143: -1.002792575e+23 | H143: 7.439080091e+22 | I143: -2.588845656e+22 | J143: 2.588845656e+22
A144: 132 | B144: 651167.5572 | C144: 4318.20396 | D144: 3681.79604 | E144: 8000 | F144: -1.351770563e+23 | H144: 1.002792575e+23 | I144: -3.489779878e+22 | J144: 3.489779878e+22
A145: 133 | B145: 646849.3532 | C145: 4342.619713 | D145: 3657.380287 | E145: 8000 | F145: -1.822195038e+23 | H145: 1.351770563e+23 | I145: -4.704244754e+22 | J145: 4.704244754e+22
A146: 134 | B146: 642506.7335 | C146: 4367.173516 | D146: 3632.826484 | E146: 8000 | F146: -2.456330126e+23 | H146: 1.822195038e+23 | I146: -6.341350881e+22 | J146: 6.341350881e+22
A147: 135 | B147: 638139.56 | C147: 4391.86615 | D147: 3608.13385 | E147: 8000 | F147: -3.311148127e+23 | H147: 2.456330126e+23 | I147: -8.548180015e+22 | J147: 8.548180015e+22
A148: 136 | B148: 633747.6938 | C148: 4416.6984 | D148: 3583.3016 | E148: 8000 | F148: -4.463448055e+23 | H148: 3.311148127e+23 | I148: -1.152299927e+23 | J148: 1.152299927e+23
A149: 137 | B149: 629330.9954 | C149: 4441.671055 | D149: 3558.328945 | E149: 8000 | F149: -6.016755448e+23 | H149: 4.463448055e+23 | I149: -1.553307394e+23 | J149: 1.553307394e+23
A150: 138 | B150: 624889.3244 | C150: 4466.784909 | D150: 3533.215091 | E150: 8000 | F150: -8.110623375e+23 | H150: 6.016755448e+23 | I150: -2.093867927e+23 | J150: 2.093867927e+23
A151: 139 | B151: 620422.5395 | C151: 4492.04076 | D151: 3507.95924 | E151: 8000 | F151: -1.093317023e+24 | H151: 8.110623375e+23 | I151: -2.822546852e+23 | J151: 2.822546852e+23
A152: 140 | B152: 615930.4987 | C152: 4517.439412 | D152: 3482.560588 | E152: 8000 | F152: -1.473798076e+24 | H152: 1.093317023e+24 | I152: -3.804810528e+23 | J152: 3.804810528e+23
A153: 141 | B153: 611413.0593 | C153: 4542.981671 | D153: 3457.018329 | E153: 8000 | F153: -1.986688876e+24 | H153: 1.473798076e+24 | I153: -5.128908009e+23 | J153: 5.128908009e+23
A154: 142 | B154: 606870.0776 | C154: 4568.66835 | D154: 3431.33165 | E154: 8000 | F154: -2.678068833e+24 | H154: 1.986688876e+24 | I154: -6.913799563e+23 | J154: 6.913799563e+23
A155: 143 | B155: 602301.4093 | C155: 4594.500265 | D155: 3405.499735 | E155: 8000 | F155: -3.610053269e+24 | H155: 2.678068833e+24 | I155: -9.319844362e+23 | J155: 9.319844362e+23
A156: 144 | B156: 597706.909 | C156: 4620.478237 | D156: 3379.521763 | E156: 8000 | F156: -4.866374025e+24 | H156: 3.610053269e+24 | I156: -1.256320756e+24 | J156: 1.256320756e+24
A157: 145 | B157: 593086.4308 | C157: 4646.603093 | D157: 3353.396907 | E157: 8000 | F157: -6.559902136e+24 | H157: 4.866374025e+24 | I157: -1.693528111e+24 | J157: 1.693528111e+24
A158: 146 | B158: 588439.8277 | C158: 4672.875663 | D158: 3327.124337 | E158: 8000 | F158: -8.842788453e+24 | H158: 6.559902136e+24 | I158: -2.282886317e+24 | J158: 2.282886317e+24
A159: 147 | B159: 583766.952 | C159: 4699.296781 | D159: 3300.703219 | E159: 8000 | F159: -1.192013326e+25 | H159: 8.842788453e+24 | I159: -3.077344806e+24 | J159: 3.077344806e+24
A160: 148 | B160: 579067.6552 | C160: 4725.867288 | D160: 3274.132712 | E160: 8000 | F160: -1.6068413e+25 | H160: 1.192013326e+25 | I160: -4.148279738e+24 | J160: 4.148279738e+24
A161: 149 | B161: 574341.7879 | C161: 4752.588029 | D161: 3247.411971 | E161: 8000 | F161: -2.166031961e+25 | H161: 1.6068413e+25 | I161: -5.591906617e+24 | J161: 5.591906617e+24
A162: 150 | B162: 569589.1999 | C162: 4779.459853 | D162: 3220.540147 | E162: 8000 | F162: -2.919824415e+25 | H162: 2.166031961e+25 | I162: -7.537924536e+24 | J162: 7.537924536e+24
A163: 151 | B163: 564809.7401 | C163: 4806.483614 | D163: 3193.516386 | E163: 8000 | F163: -3.935941282e+25 | H163: 2.919824415e+25 | I163: -1.016116867e+25 | J163: 1.016116867e+25
A164: 152 | B164: 560003.2564 | C164: 4833.660171 | D164: 3166.339829 | E164: 8000 | F164: -5.305673072e+25 | H164: 3.935941282e+25 | I164: -1.36973179e+25 | J164: 1.36973179e+25
A165: 153 | B165: 555169.5963 | C165: 4860.990388 | D165: 3139.009612 | E165: 8000 | F165: -7.152079955e+25 | H165: 5.305673072e+25 | I165: -1.846406883e+25 | J165: 1.846406883e+25
A166: 154 | B166: 550308.6059 | C166: 4888.475134 | D166: 3111.524866 | E166: 8000 | F166: -9.641047798e+25 | H166: 7.152079955e+25 | I166: -2.488967843e+25 | J166: 2.488967843e+25
A167: 155 | B167: 545420.1307 | C167: 4916.115284 | D167: 3083.884716 | E167: 8000 | F167: -1.299619177e+26 | H167: 9.641047798e+25 | I167: -3.35514397e+25 | J167: 3.35514397e+25
A168: 156 | B168: 540504.0155 | C168: 4943.911714 | D168: 3056.088286 | E168: 8000 | F168: -1.751894649e+26 | H168: 1.299619177e+26 | I168: -4.522754722e+25 | J168: 4.522754722e+25
A169: 157 | B169: 535560.1037 | C169: 4971.86531 | D169: 3028.13469 | E169: 8000 | F169: -2.361564769e+26 | H169: 1.751894649e+26 | I169: -6.096701201e+25 | J169: 6.096701201e+25
A170: 158 | B170: 530588.2384 | C170: 4999.976959 | D170: 3000.023041 | E170: 8000 | F170: -3.183403843e+26 | H170: 2.361564769e+26 | I170: -8.218390741e+25 | J170: 8.218390741e+25
A171: 159 | B171: 525588.2615 | C171: 5028.247556 | D171: 2971.752444 | E171: 8000 | F171: -4.291247973e+26 | H171: 3.183403843e+26 | I171: -1.10784413e+26 | J171: 1.10784413e+26
A172: 160 | B172: 520560.0139 | C172: 5056.677998 | D172: 2943.322002 | E172: 8000 | F172: -5.784628679e+26 | H172: 4.291247973e+26 | I172: -1.493380706e+26 | J172: 1.493380706e+26
A173: 161 | B173: 515503.3359 | C173: 5085.269191 | D173: 2914.730809 | E173: 8000 | F173: -7.797715061e+26 | H173: 5.784628679e+26 | I173: -2.013086382e+26 | J173: 2.013086382e+26
A174: 162 | B174: 510418.0667 | C174: 5114.022042 | D174: 2885.977958 | E174: 8000 | F174: -1.051136789e+27 | H174: 7.797715061e+26 | I174: -2.713652833e+26 | J174: 2.713652833e+26
A175: 163 | B175: 505304.0447 | C175: 5142.937466 | D175: 2857.062534 | E175: 8000 | F175: -1.416938861e+27 | H175: 1.051136789e+27 | I175: -3.65802072e+26 | J175: 3.65802072e+26
A176: 164 | B176: 500161.1072 | C176: 5172.016383 | D176: 2827.983617 | E176: 8000 | F176: -1.910042306e+27 | H176: 1.416938861e+27 | I176: -4.931034445e+26 | J176: 4.931034445e+26
A177: 165 | B177: 494989.0908 | C177: 5201.259715 | D177: 2798.740285 | E177: 8000 | F177: -2.574748784e+27 | H177: 1.910042306e+27 | I177: -6.64706478e+26 | J177: 6.64706478e+26
A178: 166 | B178: 489787.8311 | C178: 5230.668394 | D178: 2769.331606 | E178: 8000 | F178: -3.470777207e+27 | H178: 2.574748784e+27 | I178: -8.960284233e+26 | J178: 8.960284233e+26
A179: 167 | B179: 484557.1627 | C179: 5260.243353 | D179: 2739.756647 | E179: 8000 | F179: -4.678629037e+27 | H179: 3.470777207e+27 | I179: -1.207851829e+27 | J179: 1.207851829e+27
A180: 168 | B180: 479296.9194 | C180: 5289.985534 | D180: 2710.014466 | E180: 8000 | F180: -6.306820736e+27 | H180: 4.678629037e+27 | I180: -1.6281917e+27 | J180: 1.6281917e+27
A181: 169 | B181: 474006.9338 | C181: 5319.895881 | D181: 2680.104119 | E181: 8000 | F181: -8.501633169e+27 | H181: 6.306820736e+27 | I181: -2.194812432e+27 | J181: 2.194812432e+27
A182: 170 | B182: 468687.038 | C182: 5349.975346 | D182: 2650.024654 | E182: 8000 | F182: -1.146025384e+28 | H182: 8.501633169e+27 | I182: -2.958620667e+27 | J182: 2.958620667e+27
A183: 171 | B183: 463337.0626 | C183: 5380.224885 | D183: 2619.775115 | E183: 8000 | F183: -1.54484927e+28 | H183: 1.146025384e+28 | I183: -3.988238868e+27 | J183: 3.988238868e+27
A184: 172 | B184: 457956.8377 | C184: 5410.645458 | D184: 2589.354542 | E184: 8000 | F184: -2.082466324e+28 | H184: 1.54484927e+28 | I184: -5.37617054e+27 | J184: 5.37617054e+27
A185: 173 | B185: 452546.1923 | C185: 5441.238034 | D185: 2558.761966 | E185: 8000 | F185: -2.807177422e+28 | H185: 2.082466324e+28 | I185: -7.247110976e+27 | J185: 7.247110976e+27
A186: 174 | B186: 447104.9542 | C186: 5472.003585 | D186: 2527.996415 | E186: 8000 | F186: -3.784092442e+28 | H186: 2.807177422e+28 | I186: -9.769150199e+27 | J186: 9.769150199e+27
A187: 175 | B187: 441632.9507 | C187: 5502.943089 | D187: 2497.056911 | E187: 8000 | F187: -5.100979901e+28 | H187: 3.784092442e+28 | I187: -1.316887459e+28 | J187: 1.316887459e+28
A188: 176 | B188: 436130.0076 | C188: 5534.057529 | D188: 2465.942471 | E188: 8000 | F188: -6.876152301e+28 | H188: 5.100979901e+28 | I188: -1.7751724e+28 | J188: 1.7751724e+28
A189: 177 | B189: 430595.95 | C189: 5565.347895 | D189: 2434.652105 | E189: 8000 | F189: -9.269095622e+28 | H189: 6.876152301e+28 | I189: -2.392943321e+28 | J189: 2.392943321e+28
A190: 178 | B190: 425030.6021 | C190: 5596.815181 | D190: 2403.184819 | E190: 8000 | F190: -1.249479795e+29 | H190: 9.269095622e+28 | I190: -3.225702324e+28 | J190: 3.225702324e+28
A191: 179 | B191: 419433.787 | C191: 5628.460388 | D191: 2371.539612 | E191: 8000 | F191: -1.684306453e+29 | H191: 1.249479795e+29 | I191: -4.348266586e+28 | J191: 4.348266586e+28
A192: 180 | B192: 413805.3266 | C192: 5660.284521 | D192: 2339.715479 | E192: 8000 | F192: -2.270455465e+29 | H192: 1.684306453e+29 | I192: -5.861490119e+28 | J192: 5.861490119e+28
A193: 181 | B193: 408145.0421 | C193: 5692.288593 | D193: 2307.711407 | E193: 8000 | F193: -3.060587941e+29 | H193: 2.270455465e+29 | I193: -7.901324756e+28 | J193: 7.901324756e+28
A194: 182 | B194: 402452.7535 | C194: 5724.47362 | D194: 2275.52638 | E194: 8000 | F194: -4.125691381e+29 | H194: 3.060587941e+29 | I194: -1.06510344e+29 | J194: 1.06510344e+29
A195: 183 | B195: 396728.2798 | C195: 5756.840627 | D195: 2243.159373 | E195: 8000 | F195: -5.561457373e+29 | H195: 4.125691381e+29 | I195: -1.435765992e+29 | J195: 1.435765992e+29
A196: 184 | B196: 390971.4392 | C196: 5789.39064 | D196: 2210.60936 | E196: 8000 | F196: -7.496878768e+29 | H196: 5.561457373e+29 | I196: -1.935421394e+29 | J196: 1.935421394e+29
A197: 185 | B197: 385182.0486 | C197: 5822.124697 | D197: 2177.875303 | E197: 8000 | F197: -1.010583872e+30 | H197: 7.496878768e+29 | I197: -2.608959951e+29 | J197: 2.608959951e+29
A198: 186 | B198: 379359.9239 | C198: 5855.043836 | D198: 2144.956164 | E198: 8000 | F198: -1.362273279e+30 | H198: 1.010583872e+30 | I198: -3.516894072e+29 | J198: 3.516894072e+29
A199: 187 | B199: 373504.88 | C199: 5888.149105 | D199: 2111.850895 | E199: 8000 | F199: -1.836352764e+30 | H199: 1.362273279e+30 | I199: -4.740794854e+29 | J199: 4.740794854e+29
A200: 188 | B200: 367616.7309 | C200: 5921.441556 | D200: 2078.558444 | E200: 8000 | F200: -2.475414828e+30 | H200: 1.836352764e+30 | I200: -6.39062064e+29 | J200: 6.39062064e+29
A201: 189 | B201: 361695.2894 | C201: 5954.922248 | D201: 2045.077752 | E201: 8000 | F201: -3.336874424e+30 | H201: 2.475414828e+30 | I201: -8.614595955e+29 | J201: 8.614595955e+29
A202: 190 | B202: 355740.3671 | C202: 5988.592244 | D202: 2011.407756 | E202: 8000 | F202: -4.498127261e+30 | H202: 3.336874424e+30 | I202: -1.161252837e+30 | J202: 1.161252837e+30
A203: 191 | B203: 349751.7749 | C203: 6022.452615 | D203: 1977.547385 | E203: 8000 | F203: -6.063503231e+30 | H203: 4.498127261e+30 | I203: -1.565375971e+30 | J203: 1.565375971e+30
A204: 192 | B204: 343729.3223 | C204: 6056.504438 | D204: 1943.495562 | E204: 8000 | F204: -8.173639674e+30 | H204: 6.063503231e+30 | I204: -2.110136443e+30 | J204: 2.110136443e+30
A205: 193 | B205: 337672.8178 | C205: 6090.748795 | D205: 1909.251205 | E205: 8000 | F205: -1.101811659e+31 | H205: 8.173639674e+30 | I205: -2.844476912e+30 | J205: 2.844476912e+30
... 48 more rows

Sheet Cuota mixta 5años (hidden)
A1: Cálculo de abono mensual de Interés + Capital:
A2: CAPITAL INICIAL | D2: 280000
A3: Tasa 12 meses (TEA) | D3: 0.065
A4: Dscto.Capital mes1 | D4: 1527
A5: Abono Mensual Solicitado (Interés+Capital) | D5: =+E11 -> 3000.274398
A6: CAPITAL remanente al final del periodo | D6: =IF(B71>0,B71,"CAPITAL INSUFICIENTE") -> 172596.8889
D8: Datos variables
A10: MES | B10: CAPITAL | C10: Dscto.K | D10: Interes mes | E10: Abono Mensual
A11: 1 | B11: =+D2 -> 280000 | C11: =+D4 -> 1527 | D11: =((1+$D$3)^(30/360)-1)*B11 -> 1473.274398 | E11: =+D11+C11 -> 3000.274398
A12: 2 | B12: =+B11-C11 -> 278473 | C12: =(E11-D12) -> 1535.034607 | D12: =((1+$D$3)^(30/360)-1)*B12 -> 1465.23979 | E12: =+D12+C12 -> 3000.274398
A13: 3 | B13: =+B12-C12 -> 276937.9654 | C13: =(E12-D13) -> 1543.11149 | D13: 1457.162908 | E13: 3000.274398
A14: 4 | B14: 275394.8539 | C14: 1551.230871 | D14: 1449.043527 | E14: 3000.274398
A15: 5 | B15: 273843.623 | C15: 1559.392973 | D15: 1440.881424 | E15: 3000.274398
A16: 6 | B16: 272284.2301 | C16: 1567.598023 | D16: 1432.676375 | E16: 3000.274398
A17: 7 | B17: 270716.632 | C17: 1575.846244 | D17: 1424.428153 | E17: 3000.274398
A18: 8 | B18: 269140.7858 | C18: 1584.137865 | D18: 1416.136532 | E18: 3000.274398
A19: 9 | B19: 267556.6479 | C19: 1592.473114 | D19: 1407.801283 | E19: 3000.274398
A20: 10 | B20: 265964.1748 | C20: 1600.852221 | D20: 1399.422176 | E20: 3000.274398
A21: 11 | B21: 264363.3226 | C21: 1609.275416 | D21: 1390.998981 | E21: 3000.274398
A22: 12 | B22: 262754.0472 | C22: 1617.742931 | D22: 1382.531466 | E22: 3000.274398
A23: 13 | B23: 261136.3042 | C23: 1626.255 | D23: 1374.019398 | E23: 3000.274398
A24: 14 | B24: 259510.0492 | C24: 1634.811857 | D24: 1365.462541 | E24: 3000.274398
A25: 15 | B25: 257875.2374 | C25: 1643.413737 | D25: 1356.860661 | E25: 3000.274398
A26: 16 | B26: 256231.8237 | C26: 1652.060877 | D26: 1348.21352 | E26: 3000.274398
A27: 17 | B27: 254579.7628 | C27: 1660.753517 | D27: 1339.520881 | E27: 3000.274398
A28: 18 | B28: 252919.0093 | C28: 1669.491894 | D28: 1330.782504 | E28: 3000.274398
A29: 19 | B29: 251249.5174 | C29: 1678.27625 | D29: 1321.998148 | E29: 3000.274398
A30: 20 | B30: 249571.2411 | C30: 1687.106826 | D30: 1313.167571 | E30: 3000.274398
A31: 21 | B31: 247884.1343 | C31: 1695.983867 | D31: 1304.290531 | E31: 3000.274398
A32: 22 | B32: 246188.1504 | C32: 1704.907615 | D32: 1295.366782 | E32: 3000.274398
A33: 23 | B33: 244483.2428 | C33: 1713.878318 | D33: 1286.396079 | E33: 3000.274398
A34: 24 | B34: 242769.3645 | C34: 1722.896222 | D34: 1277.378176 | E34: 3000.274398
A35: 25 | B35: 241046.4683 | C35: 1731.961575 | D35: 1268.312823 | E35: 3000.274398
A36: 26 | B36: 239314.5067 | C36: 1741.074627 | D36: 1259.19977 | E36: 3000.274398
A37: 27 | B37: 237573.4321 | C37: 1750.23563 | D37: 1250.038768 | E37: 3000.274398
A38: 28 | B38: 235823.1964 | C38: 1759.444835 | D38: 1240.829563 | E38: 3000.274398
A39: 29 | B39: 234063.7516 | C39: 1768.702495 | D39: 1231.571902 | E39: 3000.274398
A40: 30 | B40: 232295.0491 | C40: 1778.008867 | D40: 1222.26553 | E40: 3000.274398
A41: 31 | B41: 230517.0402 | C41: 1787.364206 | D41: 1212.910191 | E41: 3000.274398
A42: 32 | B42: 228729.676 | C42: 1796.76877 | D42: 1203.505627 | E42: 3000.274398
A43: 33 | B43: 226932.9073 | C43: 1806.222818 | D43: 1194.051579 | E43: 3000.274398
A44: 34 | B44: 225126.6844 | C44: 1815.72661 | D44: 1184.547787 | E44: 3000.274398
A45: 35 | B45: 223310.9578 | C45: 1825.280409 | D45: 1174.993989 | E45: 3000.274398
A46: 36 | B46: 221485.6774 | C46: 1834.884476 | D46: 1165.389921 | E46: 3000.274398
A47: 37 | B47: 219650.7929 | C47: 1844.539077 | D47: 1155.73532 | E47: 3000.274398
A48: 38 | B48: 217806.2539 | C48: 1854.244478 | D48: 1146.029919 | E48: 3000.274398
A49: 39 | B49: 215952.0094 | C49: 1864.000946 | D49: 1136.273452 | E49: 3000.274398
A50: 40 | B50: 214088.0084 | C50: 1873.808749 | D50: 1126.465649 | E50: 3000.274398
A51: 41 | B51: 212214.1997 | C51: 1883.668158 | D51: 1116.60624 | E51: 3000.274398
A52: 42 | B52: 210330.5315 | C52: 1893.579443 | D52: 1106.694954 | E52: 3000.274398
A53: 43 | B53: 208436.9521 | C53: 1903.54288 | D53: 1096.731518 | E53: 3000.274398
A54: 44 | B54: 206533.4092 | C54: 1913.55874 | D54: 1086.715657 | E54: 3000.274398
A55: 45 | B55: 204619.8505 | C55: 1923.627301 | D55: 1076.647096 | E55: 3000.274398
A56: 46 | B56: 202696.2232 | C56: 1933.74884 | D56: 1066.525557 | E56: 3000.274398
A57: 47 | B57: 200762.4743 | C57: 1943.923635 | D57: 1056.350762 | E57: 3000.274398
A58: 48 | B58: 198818.5507 | C58: 1954.151967 | D58: 1046.12243 | E58: 3000.274398
A59: 49 | B59: 196864.3987 | C59: 1964.434117 | D59: 1035.84028 | E59: 3000.274398
A60: 50 | B60: 194899.9646 | C60: 1974.770369 | D60: 1025.504028 | E60: 3000.274398
A61: 51 | B61: 192925.1942 | C61: 1985.161007 | D61: 1015.11339 | E61: 3000.274398
A62: 52 | B62: 190940.0332 | C62: 1995.606317 | D62: 1004.66808 | E62: 3000.274398
A63: 53 | B63: 188944.4269 | C63: 2006.106588 | D63: 994.1678098 | E63: 3000.274398
A64: 54 | B64: 186938.3203 | C64: 2016.662107 | D64: 983.6122902 | E64: 3000.274398
A65: 55 | B65: 184921.6582 | C65: 2027.273167 | D65: 973.0012307 | E65: 3000.274398
A66: 56 | B66: 182894.3851 | C66: 2037.940058 | D66: 962.3343391 | E66: 3000.274398
A67: 57 | B67: 180856.445 | C67: 2048.663076 | D67: 951.6113216 | E67: 3000.274398
A68: 58 | B68: 178807.7819 | C68: 2059.442515 | D68: 940.8318828 | E68: 3000.274398
A69: 59 | B69: 176748.3394 | C69: 2070.278672 | D69: 929.9957259 | E69: 3000.274398
A70: 60 | B70: 174678.0607 | C70: 2081.171845 | D70: 919.1025525 | E70: 3000.274398
B71: 172596.8889

Sheet Cuota mixta (hidden)
A1: Cálculo de abono mensual de Interés + Capital: | G1: Pre-Cancelación de abono mensual de Interés + Capital:
A2: CAPITAL | D2: 600000 | G2: CAPITAL | J2: =+D2 -> 600000
A3: Tasa 12 meses (TEA) | D3: 0.07 | G3: Tasa 12 meses (TEA) penalidad | J3: 0.0125
A4: Dscto.Capital mes1 | D4: 6607.512768 | G4: Dscto.Capital mes1 | J4: 9378.552391
A5: Abono Mensual Solicitado (Interés+Capital) | D5: =+E11 -> 10000 | G5: Abono Mensual Solicitado (Interés+Capital) | J5: =+K11 -> 10000
A6: CAPITAL remanente al final del periodo | D6: =+B47 -> 337011.6271 | G6: CAPITAL remanente sin penalidad | J6: =+H23 -> 486814.042
G7: Dscto. del Capital por Penalidad | J7: =+B23-H23 -> 31382.98652
G8: CAPITAL neto | J8: =+J6-J7 -> 455431.0555
A10: MES | B10: CAPITAL | C10: Dscto.K | D10: Interes mes | E10: Abono Mensual | G10: MES | H10: CAPITAL | I10: Dscto.K | J10: Interes mes | K10: Abono Mensual
A11: 1 | B11: =+D2 -> 600000 | C11: =+D4 -> 6607.512768 | D11: =((1+$D$3)^(30/360)-1)*B11 -> 3392.487232 | E11: =+D11+C11 -> 10000 | G11: 1 | H11: =+J2 -> 600000 | I11: =+J4 -> 9378.552391 | J11: =((1+$J$3)^(30/360)-1)*H11 -> 621.4476088 | K11: =+J11+I11 -> 10000
A12: 2 | B12: =+B11-C11 -> 593392.4872 | C12: =(E11-D12) -> 6644.872605 | D12: =((1+$D$3)^(30/360)-1)*B12 -> 3355.127395 | E12: =+D12+C12 -> 10000 | G12: 2 | H12: =+H11-I11 -> 590621.4476 | I12: =(K11-J12) -> 9388.266189 | J12: =((1+$J$3)^(30/360)-1)*H12 -> 611.7338106 | K12: =+J12+I12 -> 10000
A13: 3 | B13: =+B12-C12 -> 586747.6146 | C13: =(E12-D13) -> 6682.443681 | D13: 3317.556319 | E13: 10000 | G13: 3 | H13: =+H12-I12 -> 581233.1814 | I13: =(K12-J13) -> 9397.990049 | J13: =((1+$J$3)^(30/360)-1)*H13 -> 602.0099513 | K13: =+J13+I13 -> 10000
A14: 4 | B14: 580065.1709 | C14: 6720.227189 | D14: 3279.772811 | E14: 10000 | G14: 4 | H14: =+H13-I13 -> 571835.1914 | I14: =(K13-J14) -> 9407.723979 | J14: =((1+$J$3)^(30/360)-1)*H14 -> 592.2760205 | K14: =+J14+I14 -> 10000
A15: 5 | B15: 573344.9438 | C15: 6758.224331 | D15: 3241.775669 | E15: 10000 | G15: 5 | H15: =+H14-I14 -> 562427.4674 | I15: =(K14-J15) -> 9417.467992 | J15: =((1+$J$3)^(30/360)-1)*H15 -> 582.5320079 | K15: =+J15+I15 -> 10000
A16: 6 | B16: 566586.7194 | C16: 6796.436314 | D16: 3203.563686 | E16: 10000 | G16: 6 | H16: =+H15-I15 -> 553009.9994 | I16: =(K15-J16) -> 9427.222097 | J16: =((1+$J$3)^(30/360)-1)*H16 -> 572.777903 | K16: =+J16+I16 -> 10000
A17: 7 | B17: 559790.2831 | C17: 6834.864353 | D17: 3165.135647 | E17: 10000 | G17: 7 | H17: 543582.7773 | I17: 9436.986305 | J17: 563.0136952 | K17: 10000
A18: 8 | B18: 552955.4188 | C18: 6873.50967 | D18: 3126.49033 | E18: 10000 | G18: 8 | H18: 534145.791 | I18: 9446.760626 | J18: 553.2393743 | K18: 10000
A19: 9 | B19: 546081.9091 | C19: 6912.373493 | D19: 3087.626507 | E19: 10000 | G19: 9 | H19: 524699.0304 | I19: 9456.54507 | J19: 543.4549296 | K19: 10000
A20: 10 | B20: 539169.5356 | C20: 6951.457057 | D20: 3048.542943 | E20: 10000 | G20: 10 | H20: 515242.4853 | I20: 9466.339649 | J20: 533.6603508 | K20: 10000
A21: 11 | B21: 532218.0785 | C21: 6990.761606 | D21: 3009.238394 | E21: 10000 | G21: 11 | H21: 505776.1457 | I21: 9476.144373 | J21: 523.8556272 | K21: 10000
A22: 12 | B22: 525227.3169 | C22: 7030.288389 | D22: 2969.711611 | E22: 10000 | G22: 12 | H22: 496300.0013 | I22: 9485.959252 | J22: 514.0407484 | K22: 10000
A23: 13 | B23: =+B22-C22 -> 518197.0285 | C23: 7070.038661 | D23: 2929.961339 | E23: 10000 | G23: 13 | H23: 486814.042 | I23: 9495.784296 | J23: 504.2157039 | K23: 10000
A24: 14 | B24: 511126.9899 | C24: 7110.013688 | D24: 2889.986312 | E24: 10000 | G24: 14 | H24: 477318.2577 | I24: 9505.619517 | J24: 494.3804832 | K24: 10000
A25: 15 | B25: 504016.9762 | C25: 7150.214739 | D25: 2849.785261 | E25: 10000 | G25: 15 | H25: 467812.6382 | I25: 9515.464924 | J25: 484.5350757 | K25: 10000
A26: 16 | B26: 496866.7615 | C26: 7190.643093 | D26: 2809.356907 | E26: 10000 | G26: 16 | H26: 458297.1733 | I26: 9525.320529 | J26: 474.6794708 | K26: 10000
A27: 17 | B27: 489676.1184 | C27: 7231.300034 | D27: 2768.699966 | E27: 10000 | G27: 17 | H27: 448771.8528 | I27: 9535.186342 | J27: 464.813658 | K27: 10000
A28: 18 | B28: 482444.8183 | C28: 7272.186856 | D28: 2727.813144 | E28: 10000 | G28: 18 | H28: 439236.6664 | I28: 9545.062373 | J28: 454.9376268 | K28: 10000
A29: 19 | B29: 475172.6315 | C29: 7313.304858 | D29: 2686.695142 | E29: 10000 | G29: 19 | H29: 429691.604 | I29: 9554.948634 | J29: 445.0513664 | K29: 10000
A30: 20 | B30: 467859.3266 | C30: 7354.655346 | D30: 2645.344654 | E30: 10000 | G30: 20 | H30: 420136.6554 | I30: 9564.845134 | J30: 435.1548665 | K30: 10000
A31: 21 | B31: 460504.6713 | C31: 7396.239637 | D31: 2603.760363 | E31: 10000 | G31: 21 | H31: 410571.8103 | I31: 9574.751884 | J31: 425.2481162 | K31: 10000
A32: 22 | B32: 453108.4316 | C32: 7438.059051 | D32: 2561.940949 | E32: 10000 | G32: 22 | H32: 400997.0584 | I32: 9584.668895 | J32: 415.3311051 | K32: 10000
A33: 23 | B33: 445670.3726 | C33: 7480.114919 | D33: 2519.885081 | E33: 10000 | G33: 23 | H33: 391412.3895 | I33: 9594.596177 | J33: 405.4038225 | K33: 10000
A34: 24 | B34: 438190.2577 | C34: 7522.408576 | D34: 2477.591424 | E34: 10000 | G34: 24 | H34: 381817.7933 | I34: 9604.533742 | J34: 395.4662578 | K34: 10000
A35: 25 | B35: 430667.8491 | C35: 7564.941368 | D35: 2435.058632 | E35: 10000 | G35: 25 | H35: 372213.2596 | I35: 9614.4816 | J35: 385.5184002 | K35: 10000
A36: 26 | B36: 423102.9077 | C36: 7607.714646 | D36: 2392.285354 | E36: 10000 | G36: 26 | H36: 362598.778 | I36: 9624.439761 | J36: 375.5602392 | K36: 10000
A37: 27 | B37: 415495.1931 | C37: 7650.729771 | D37: 2349.270229 | E37: 10000 | G37: 27 | H37: 352974.3382 | I37: 9634.408236 | J37: 365.5917641 | K37: 10000
A38: 28 | B38: 407844.4633 | C38: 7693.988109 | D38: 2306.011891 | E38: 10000 | G38: 28 | H38: 343339.93 | I38: 9644.387036 | J38: 355.6129642 | K38: 10000
A39: 29 | B39: 400150.4752 | C39: 7737.491036 | D39: 2262.508964 | E39: 10000 | G39: 29 | H39: 333695.5429 | I39: 9654.376171 | J39: 345.6238287 | K39: 10000
A40: 30 | B40: 392412.9842 | C40: 7781.239936 | D40: 2218.760064 | E40: 10000 | G40: 30 | H40: 324041.1668 | I40: 9664.375653 | J40: 335.6243471 | K40: 10000
A41: 31 | B41: 384631.7442 | C41: 7825.236198 | D41: 2174.763802 | E41: 10000 | G41: 31 | H41: 314376.7911 | I41: 9674.385491 | J41: 325.6145085 | K41: 10000
A42: 32 | B42: 376806.508 | C42: 7869.481221 | D42: 2130.518779 | E42: 10000 | G42: 32 | H42: 304702.4056 | I42: 9684.405698 | J42: 315.5943023 | K42: 10000
A43: 33 | B43: 368937.0268 | C43: 7913.976412 | D43: 2086.023588 | E43: 10000 | G43: 33 | H43: 295017.9999 | I43: 9694.436282 | J43: 305.5637177 | K43: 10000
A44: 34 | B44: 361023.0504 | C44: 7958.723185 | D44: 2041.276815 | E44: 10000 | G44: 34 | H44: 285323.5637 | I44: 9704.477256 | J44: 295.522744 | K44: 10000
A45: 35 | B45: 353064.3272 | C45: 8003.722963 | D45: 1996.277037 | E45: 10000 | G45: 35 | H45: 275619.0864 | I45: 9714.52863 | J45: 285.4713703 | K45: 10000
A46: 36 | B46: 345060.6042 | C46: 8048.977176 | D46: 1951.022824 | E46: 10000 | G46: 36 | H46: 265904.5578 | I46: 9724.590414 | J46: 275.409586 | K46: 10000
A47: 37 | B47: =+B46-C46 -> 337011.6271 | C47: =(E46-D47) -> 8094.487263 | D47: =((1+$D$3)^(30/360)-1)*B47 -> 1905.512737 | E47: =+D47+C47 -> 10000 | G47: 37 | H47: 256179.9674 | I47: 9734.66262 | J47: 265.3373802 | K47: 10000
A48: 38 | B48: 328917.1398 | C48: 8140.254671 | D48: 1859.745329 | E48: 10000 | G48: 38 | H48: 246445.3047 | I48: 9744.745258 | J48: 255.2547422 | K48: 10000
A49: 39 | B49: 320776.8851 | C49: 8186.280855 | D49: 1813.719145 | E49: 10000 | G49: 39 | H49: 236700.5595 | I49: 9754.838339 | J49: 245.1616612 | K49: 10000
A50: 40 | B50: 312590.6043 | C50: 8232.567277 | D50: 1767.432723 | E50: 10000 | G50: 40 | H50: 226945.7211 | I50: 9764.941874 | J50: 235.0581262 | K50: 10000
A51: 41 | B51: 304358.037 | C51: 8279.115409 | D51: 1720.884591 | E51: 10000 | G51: 41 | H51: 217180.7793 | I51: 9775.055873 | J51: 224.9441266 | K51: 10000
A52: 42 | B52: 296078.9216 | C52: 8325.926731 | D52: 1674.073269 | E52: 10000 | G52: 42 | H52: 207405.7234 | I52: 9785.180349 | J52: 214.8196514 | K52: 10000
A53: 43 | B53: 287752.9949 | C53: 8373.002731 | D53: 1626.997269 | E53: 10000 | G53: 43 | H53: 197620.543 | I53: 9795.31531 | J53: 204.6846899 | K53: 10000
A54: 44 | B54: 279379.9921 | C54: 8420.344906 | D54: 1579.655094 | E54: 10000 | G54: 44 | H54: 187825.2277 | I54: 9805.460769 | J54: 194.5392311 | K54: 10000
A55: 45 | B55: 270959.6472 | C55: 8467.95476 | D55: 1532.04524 | E55: 10000 | G55: 45 | H55: 178019.767 | I55: 9815.616736 | J55: 184.3832642 | K55: 10000
A56: 46 | B56: 262491.6925 | C56: 8515.833808 | D56: 1484.166192 | E56: 10000 | G56: 46 | H56: 168204.1502 | I56: 9825.783222 | J56: 174.2167783 | K56: 10000
A57: 47 | B57: 253975.8587 | C57: 8563.98357 | D57: 1436.01643 | E57: 10000 | G57: 47 | H57: 158378.367 | I57: 9835.960238 | J57: 164.0397624 | K57: 10000
A58: 48 | B58: 245411.8751 | C58: 8612.405578 | D58: 1387.594422 | E58: 10000 | G58: 48 | H58: 148542.4068 | I58: 9846.147794 | J58: 153.8522058 | K58: 10000
A59: 49 | B59: 236799.4695 | C59: 8661.101372 | D59: 1338.898628 | E59: 10000 | G59: 49 | H59: 138696.259 | I59: 9856.345903 | J59: 143.6540975 | K59: 10000
A60: 50 | B60: 228138.3681 | C60: 8710.072498 | D60: 1289.927502 | E60: 10000 | G60: 50 | H60: 128839.9131 | I60: 9866.554574 | J60: 133.4454265 | K60: 10000
A61: 51 | B61: 219428.2956 | C61: 8759.320514 | D61: 1240.679486 | E61: 10000 | G61: 51 | H61: 118973.3585 | I61: 9876.773818 | J61: 123.2261819 | K61: 10000
A62: 52 | B62: 210668.9751 | C62: 8808.846986 | D62: 1191.153014 | E62: 10000 | G62: 52 | H62: 109096.5847 | I62: 9887.003647 | J62: 112.9963528 | K62: 10000
A63: 53 | B63: 201860.1281 | C63: 8858.653488 | D63: 1141.346512 | E63: 10000 | G63: 53 | H63: 99209.58103 | I63: 9897.244072 | J63: 102.7559282 | K63: 10000
A64: 54 | B64: 193001.4747 | C64: 8908.741602 | D64: 1091.258398 | E64: 10000 | G64: 54 | H64: 89312.33696 | I64: 9907.495103 | J64: 92.50489707 | K64: 10000
A65: 55 | B65: 184092.733 | C65: 8959.112923 | D65: 1040.887077 | E65: 10000 | G65: 55 | H65: 79404.84186 | I65: 9917.756751 | J65: 82.2432485 | K65: 10000
A66: 56 | B66: 175133.6201 | C66: 9009.76905 | D66: 990.2309504 | E66: 10000 | G66: 56 | H66: 69487.0851 | I66: 9928.029029 | J66: 71.97097147 | K66: 10000
A67: 57 | B67: 166123.8511 | C67: 9060.711594 | D67: 939.2884063 | E67: 10000 | G67: 57 | H67: 59559.05608 | I67: 9938.311945 | J67: 61.68805497 | K67: 10000
A68: 58 | B68: 157063.1395 | C68: 9111.942174 | D68: 888.0578256 | E68: 10000 | G68: 58 | H68: 49620.74413 | I68: 9948.605512 | J68: 51.39448798 | K68: 10000
A69: 59 | B69: 147951.1973 | C69: 9163.46242 | D69: 836.5375798 | E69: 10000 | G69: 59 | H69: 39672.13862 | I69: 9958.909741 | J69: 41.09025947 | K69: 10000
A70: 60 | B70: 138787.7349 | C70: 9215.273969 | D70: 784.726031 | E70: 10000 | G70: 60 | H70: 29713.22888 | I70: 9969.224642 | J70: 30.77535839 | K70: 10000
